[Event "Titled Tuesday Blitz May 24 Early 2022"]
[White "Urazayev, Arystanbek"]
[Black "Bagrationi, Alexander"]
[WhiteFideId "13709810"]
[BlackFideId "14104954"]
[WhiteElo "2422"]
[BlackElo "2502"]
[Result "0-1"]
[Round "02"]
[TimeControl "180+1"]
[Date "2022.05.25"]
[WhiteClock "0:00:47"]
[BlackClock "0:01:18"]

1. e4 {[%clk 0:03:00]}  e6 {[%clk 0:02:33]} 2. d4 {[%clk 0:03:00]}  d5 {[%clk 0:02:32]} 3. Nd2 {[%clk 0:03:00]}  h6 {[%clk 0:02:31]} 4. c3 {[%clk 0:02:57]}  Nf6 {[%clk 0:02:29]} 5. e5 {[%clk 0:02:57]}  Nfd7 {[%clk 0:02:30]} 6. Bd3 {[%clk 0:02:56]}  c5 {[%clk 0:02:31]} 7. Qe2 {[%clk 0:02:53]}  Nc6 {[%clk 0:02:32]} 8. Ngf3 {[%clk 0:02:53]}  Be7 {[%clk 0:02:26]} 9. O-O {[%clk 0:02:52]}  g5 {[%clk 0:02:24]} 10. Qe3 {[%clk 0:02:52]}  g4 {[%clk 0:02:09]} 11. Ne1 {[%clk 0:02:52]}  Qb6 {[%clk 0:02:09]} 12. Nc2 {[%clk 0:02:52]}  cxd4 {[%clk 0:02:05]} 13. cxd4 {[%clk 0:02:52]}  Bg5 {[%clk 0:02:05]} 14. f4 {[%clk 0:02:52]}  gxf3 {[%clk 0:02:00]} 15. Qxf3 {[%clk 0:02:52]}  Ndxe5 {[%clk 0:01:59]} 16. Qf2 {[%clk 0:02:03]}  Nxd3 {[%clk 0:01:55]} 17. Qxf7+ {[%clk 0:02:03]}  Kd8 {[%clk 0:01:55]} 18. Nc4 {[%clk 0:02:04]}  dxc4 {[%clk 0:01:50]} 19. Bxg5+ {[%clk 0:02:04]}  hxg5 {[%clk 0:01:50]} 20. Qf6+ {[%clk 0:02:04]}  Kc7 {[%clk 0:01:44]} 21. Qxh8 {[%clk 0:02:04]}  Qxb2 {[%clk 0:01:41]} 22. Ne3 {[%clk 0:01:11]}  Nxd4 {[%clk 0:01:30]} 23. Qh7+ {[%clk 0:00:51]}  Bd7 {[%clk 0:01:26]} 24. Nxc4 {[%clk 0:00:52]}  Ne2+ {[%clk 0:01:17]} 25. Kh1 {[%clk 0:00:48]}  Nf2+ {[%clk 0:01:17]} 26. Rxf2 {[%clk 0:00:47]}  Qxa1+ {[%clk 0:01:18]} 27. Rf1 {[%clk 0:00:47]}  Qxf1# {[%clk 0:01:18]} 0-1


[Site "https://www.chess.com"]

[Event "Titled Tuesday Blitz May 24 Early 2022"]
[White "Vidit, Santosh Gujrathi"]
[Black "Skliarov, Viktor"]
[WhiteFideId "5029465"]
[BlackFideId "14106736"]
[WhiteElo "2654"]
[BlackElo "2229"]
[Result "1-0"]
[Round "02"]
[TimeControl "180+1"]
[Date "2022.05.24"]
[WhiteClock "0:00:16"]
[BlackClock "0:00:14"]

1. e4 {[%clk 0:03:00]}  c5 {[%clk 0:03:00]} 2. Nf3 {[%clk 0:02:59]}  Nc6 {[%clk 0:03:00]} 3. Bb5 {[%clk 0:02:59]}  e6 {[%clk 0:03:00]} 4. O-O {[%clk 0:02:58]}  Nge7 {[%clk 0:03:01]} 5. Re1 {[%clk 0:02:58]}  Nd4 {[%clk 0:02:58]} 6. Nxd4 {[%clk 0:02:57]}  cxd4 {[%clk 0:02:59]} 7. c3 {[%clk 0:02:57]}  a6 {[%clk 0:02:59]} 8. Bf1 {[%clk 0:02:56]}  Nc6 {[%clk 0:02:59]} 9. b4 {[%clk 0:02:56]}  Be7 {[%clk 0:02:53]} 10. Na3 {[%clk 0:02:47]}  O-O {[%clk 0:02:45]} 11. Nc2 {[%clk 0:02:43]}  dxc3 {[%clk 0:02:41]} 12. dxc3 {[%clk 0:02:43]}  Bf6 {[%clk 0:02:42]} 13. Qd3 {[%clk 0:02:21]}  d5 {[%clk 0:02:35]} 14. exd5 {[%clk 0:02:16]}  Qxd5 {[%clk 0:02:26]} 15. Qg3 {[%clk 0:02:16]}  Rd8 {[%clk 0:01:56]} 16. Bf4 {[%clk 0:01:56]}  Qf5 {[%clk 0:01:40]} 17. Ne3 {[%clk 0:01:48]}  Qg6 {[%clk 0:01:40]} 18. Ng4 {[%clk 0:01:42]}  Bxc3 {[%clk 0:01:02]} 19. Nh6+ {[%clk 0:01:38]}  gxh6 {[%clk 0:01:02]} 20. Qxc3 {[%clk 0:01:38]}  f6 {[%clk 0:00:50]} 21. Bc4 {[%clk 0:01:22]}  Ne7 {[%clk 0:00:35]} 22. Re3 {[%clk 0:00:55]}  Nf5 {[%clk 0:00:29]} 23. Bxe6+ {[%clk 0:00:55]}  Bxe6 {[%clk 0:00:29]} 24. Rxe6 {[%clk 0:00:56]}  Rac8 {[%clk 0:00:18]} 25. Qxf6 {[%clk 0:00:51]}  Nd4 {[%clk 0:00:14]} 26. Qxg6+ {[%clk 0:00:29]}  hxg6 {[%clk 0:00:15]} 27. Re7 {[%clk 0:00:26]}  Kf8 {[%clk 0:00:12]} 28. Re4 {[%clk 0:00:16]}  Kg7 {[%clk 0:00:13]} 29. Rxd4 {[%clk 0:00:16]}  Rxd4 {[%clk 0:00:12]} 30. Be5+ {[%clk 0:00:16]}  Kf7 {[%clk 0:00:12]} 31. Bxd4 {[%clk 0:00:17]}  Rc4 {[%clk 0:00:13]} 32. Bc5 {[%clk 0:00:16]}  b6 {[%clk 0:00:14]} 33. Bxb6 {[%clk 0:00:16]}  Rxb4 {[%clk 0:00:14]} 34. Be3 {[%clk 0:00:16]} 1-0


[Site "https://www.chess.com"]

[Event "Titled Tuesday Blitz May 24 Early 2022"]
[White "Vidonyak, Roman"]
[Black "Sismeiro, Miguel"]
[WhiteFideId "14100622"]
[BlackFideId "1950975"]
[WhiteElo "2360"]
[BlackElo "2031"]
[Result "0-1"]
[Round "02"]
[TimeControl "180+1"]
[Date "2022.05.25"]
[WhiteClock "0:00:06"]
[BlackClock "0:00:11"]

1. d4 {[%clk 0:03:00]}  g6 {[%clk 0:02:59]} 2. c4 {[%clk 0:03:00]}  Bg7 {[%clk 0:02:59]} 3. e4 {[%clk 0:03:00]}  d6 {[%clk 0:02:59]} 4. Nc3 {[%clk 0:02:59]}  c5 {[%clk 0:02:58]} 5. d5 {[%clk 0:02:59]}  Bxc3+ {[%clk 0:02:57]} 6. bxc3 {[%clk 0:03:00]}  e5 {[%clk 0:02:58]} 7. h4 {[%clk 0:02:56]}  h6 {[%clk 0:02:50]} 8. Be3 {[%clk 0:02:51]}  Nd7 {[%clk 0:02:45]} 9. Be2 {[%clk 0:02:42]}  Qe7 {[%clk 0:02:43]} 10. Qd2 {[%clk 0:02:32]}  Ndf6 {[%clk 0:02:32]} 11. f3 {[%clk 0:02:24]}  Kd8 {[%clk 0:02:11]} 12. g4 {[%clk 0:02:13]}  Ne8 {[%clk 0:02:01]} 13. O-O-O {[%clk 0:01:55]}  Bd7 {[%clk 0:01:54]} 14. Nh3 {[%clk 0:01:52]}  Kc7 {[%clk 0:01:36]} 15. Kb1 {[%clk 0:01:44]}  b6 {[%clk 0:01:34]} 16. Qc2 {[%clk 0:01:40]}  f5 {[%clk 0:01:26]} 17. gxf5 {[%clk 0:01:36]}  gxf5 {[%clk 0:01:26]} 18. exf5 {[%clk 0:01:34]}  Ng7 {[%clk 0:01:25]} 19. Bd3 {[%clk 0:01:32]}  Rf8 {[%clk 0:01:25]} 20. f4 {[%clk 0:01:08]}  Nxf5 {[%clk 0:01:23]} 21. Bf2 {[%clk 0:01:08]}  exf4 {[%clk 0:00:31]} 22. Nxf4 {[%clk 0:00:58]}  Ne3 {[%clk 0:00:28]} 23. Bxe3 {[%clk 0:00:49]}  Qxe3 {[%clk 0:00:29]} 24. Ng2 {[%clk 0:00:46]}  Qf2 {[%clk 0:00:26]} 25. Rd2 {[%clk 0:00:44]}  Qg3 {[%clk 0:00:23]} 26. Re2 {[%clk 0:00:23]}  Nf6 {[%clk 0:00:22]} 27. Rhe1 {[%clk 0:00:21]}  Ng4 {[%clk 0:00:21]} 28. Re7 {[%clk 0:00:20]}  Ne5 {[%clk 0:00:21]} 29. Qa4 {[%clk 0:00:16]}  Qxd3+ {[%clk 0:00:18]} 30. Kb2 {[%clk 0:00:15]}  Qd2+ {[%clk 0:00:10]} 31. Ka3 {[%clk 0:00:12]}  Kd8 {[%clk 0:00:10]} 32. Rxd7+ {[%clk 0:00:08]}  Nxd7 {[%clk 0:00:11]} 33. Rd1 {[%clk 0:00:08]}  Qxc3+ {[%clk 0:00:11]} 34. Qb3 {[%clk 0:00:08]}  Qxb3+ {[%clk 0:00:11]} 35. axb3 {[%clk 0:00:09]}  Ne5 {[%clk 0:00:11]} 36. Ne3 {[%clk 0:00:08]}  Rf3 {[%clk 0:00:11]} 37. Nc2 {[%clk 0:00:06]}  Nxc4+ {[%clk 0:00:11]} 0-1


[Site "https://www.chess.com"]

[Event "Titled Tuesday Blitz May 24 Early 2022"]
[White "Vo, Thi Kim Phung"]
[Black "Riehle, Marco"]
[WhiteFideId "12401838"]
[BlackFideId "12904392"]
[WhiteElo "2261"]
[BlackElo "2462"]
[Result "1-0"]
[Round "02"]
[TimeControl "180+1"]
[Date "2022.05.25"]
[WhiteClock "0:00:06"]
[BlackClock "0:01:00"]

1. d4 {[%clk 0:02:59]}  d5 {[%clk 0:02:58]} 2. c4 {[%clk 0:02:59]}  e6 {[%clk 0:02:59]} 3. Nc3 {[%clk 0:03:00]}  c5 {[%clk 0:02:58]} 4. cxd5 {[%clk 0:02:59]}  cxd4 {[%clk 0:02:58]} 5. Qxd4 {[%clk 0:02:58]}  Nc6 {[%clk 0:02:58]} 6. Qd1 {[%clk 0:02:33]}  exd5 {[%clk 0:02:59]} 7. Qxd5 {[%clk 0:02:29]}  Be6 {[%clk 0:02:58]} 8. Qxd8+ {[%clk 0:02:26]}  Rxd8 {[%clk 0:02:59]} 9. e3 {[%clk 0:02:25]}  Nb4 {[%clk 0:02:59]} 10. Bb5+ {[%clk 0:02:22]}  Ke7 {[%clk 0:02:59]} 11. Kf1 {[%clk 0:02:12]}  g5 {[%clk 0:02:49]} 12. Nf3 {[%clk 0:02:04]}  Nc2 {[%clk 0:02:49]} 13. Rb1 {[%clk 0:02:03]}  Bxa2 {[%clk 0:02:49]} 14. Nxa2 {[%clk 0:01:57]}  Rd1+ {[%clk 0:02:49]} 15. Ke2 {[%clk 0:01:54]}  Rxh1 {[%clk 0:02:50]} 16. Bd3 {[%clk 0:01:49]}  g4 {[%clk 0:02:49]} 17. Nh4 {[%clk 0:01:45]}  Rxh2 {[%clk 0:02:44]} 18. Nf5+ {[%clk 0:01:29]}  Kd8 {[%clk 0:02:43]} 19. Bxc2 {[%clk 0:01:25]}  Ne7 {[%clk 0:02:40]} 20. Bd2 {[%clk 0:01:07]}  Nxf5 {[%clk 0:02:37]} 21. Bxf5 {[%clk 0:01:07]}  Bg7 {[%clk 0:02:33]} 22. Bxg4 {[%clk 0:00:58]}  Rxg2 {[%clk 0:02:32]} 23. Bf3 {[%clk 0:00:47]}  Rg6 {[%clk 0:02:31]} 24. Bxb7 {[%clk 0:00:44]}  h5 {[%clk 0:02:28]} 25. Nc3 {[%clk 0:00:41]}  Rb6 {[%clk 0:02:24]} 26. Bf3 {[%clk 0:00:35]}  h4 {[%clk 0:02:24]} 27. b4 {[%clk 0:00:31]}  h3 {[%clk 0:02:22]} 28. Nd5 {[%clk 0:00:30]}  Rd6 {[%clk 0:02:21]} 29. e4 {[%clk 0:00:30]}  Be5 {[%clk 0:02:19]} 30. Bg4 {[%clk 0:00:26]}  h2 {[%clk 0:02:16]} 31. Rh1 {[%clk 0:00:21]}  Rg6 {[%clk 0:02:12]} 32. f3 {[%clk 0:00:17]}  a6 {[%clk 0:01:59]} 33. Bf4 {[%clk 0:00:17]}  Bxf4 {[%clk 0:01:58]} 34. Nxf4 {[%clk 0:00:18]}  Rc6 {[%clk 0:01:58]} 35. Kf2 {[%clk 0:00:15]}  Rc4 {[%clk 0:01:55]} 36. Nd5 {[%clk 0:00:14]}  Rc2+ {[%clk 0:01:50]} 37. Kg3 {[%clk 0:00:14]}  Rb2 {[%clk 0:01:50]} 38. Bf5 {[%clk 0:00:13]}  Rg8+ {[%clk 0:01:48]} 39. Bg4 {[%clk 0:00:13]}  Rh8 {[%clk 0:01:48]} 40. Bf5 {[%clk 0:00:09]}  Ke8 {[%clk 0:01:48]} 41. Nf6+ {[%clk 0:00:08]}  Ke7 {[%clk 0:01:47]} 42. Nd5+ {[%clk 0:00:09]}  Kd6 {[%clk 0:01:48]} 43. Bg4 {[%clk 0:00:09]}  Ke5 {[%clk 0:01:46]} 44. Bf5 {[%clk 0:00:07]}  Kd4 {[%clk 0:01:46]} 45. Bg4 {[%clk 0:00:07]}  Kc4 {[%clk 0:01:38]} 46. Nc7 {[%clk 0:00:04]}  Ra2 {[%clk 0:01:29]} 47. Nd5 {[%clk 0:00:04]}  Rh6 {[%clk 0:01:27]} 48. Bh3 {[%clk 0:00:03]}  Rg6+ {[%clk 0:01:25]} 49. Bg4 {[%clk 0:00:03]}  Rh6 {[%clk 0:01:26]} 50. Bh3 {[%clk 0:00:03]}  f5 {[%clk 0:01:18]} 51. Bxf5 {[%clk 0:00:02]}  Rh8 {[%clk 0:01:17]} 52. Bg4 {[%clk 0:00:02]}  Kd4 {[%clk 0:01:15]} 53. Bh3 {[%clk 0:00:02]}  Rg8+ {[%clk 0:01:14]} 54. Bg4 {[%clk 0:00:03]}  Rh8 {[%clk 0:01:15]} 55. Bf5 {[%clk 0:00:02]}  Re2 {[%clk 0:01:13]} 56. Bg4 {[%clk 0:00:03]}  Rd2 {[%clk 0:01:11]} 57. Nc7 {[%clk 0:00:03]}  Ra2 {[%clk 0:01:08]} 58. Nd5 {[%clk 0:00:03]}  Kc4 {[%clk 0:01:07]} 59. Bh3 {[%clk 0:00:03]}  Rg8+ {[%clk 0:01:06]} 60. Bg4 {[%clk 0:00:04]}  Rh8 {[%clk 0:01:07]} 61. Bh3 {[%clk 0:00:03]}  Rf8 {[%clk 0:01:06]} 62. Bg4 {[%clk 0:00:02]}  Rc2 {[%clk 0:01:02]} 63. Ne3+ {[%clk 0:00:02]}  Kd3 {[%clk 0:01:02]} 64. Nxc2 {[%clk 0:00:02]}  Kxc2 {[%clk 0:01:03]} 65. Rxh2+ {[%clk 0:00:03]}  Kb3 {[%clk 0:01:03]} 66. Rh6 {[%clk 0:00:03]}  Ra8 {[%clk 0:01:02]} 67. Rb6 {[%clk 0:00:04]}  Kc4 {[%clk 0:01:02]} 68. e5 {[%clk 0:00:04]}  Kd5 {[%clk 0:01:00]} 69. e6 {[%clk 0:00:04]}  Ke5 {[%clk 0:01:01]} 70. e7 {[%clk 0:00:04]}  Re8 {[%clk 0:01:01]} 71. Rb7 {[%clk 0:00:04]}  Kd6 {[%clk 0:01:01]} 72. Rb6+ {[%clk 0:00:04]}  Kc7 {[%clk 0:01:01]} 73. Rxa6 {[%clk 0:00:05]}  Rxe7 {[%clk 0:00:59]} 74. Ra7+ {[%clk 0:00:05]}  Kd6 {[%clk 0:00:59]} 75. Rxe7 {[%clk 0:00:05]}  Kxe7 {[%clk 0:01:00]} 76. Kf4 {[%clk 0:00:06]} 1-0


[Site "https://www.chess.com"]

[Event "Titled Tuesday Blitz May 24 Early 2022"]
[White "Volkov, Maksim"]
[Black "Chuemsakul, Sarocha"]
[WhiteFideId "54123070"]
[BlackFideId "6203710"]
[WhiteElo "2155"]
[BlackElo "1703"]
[Result "1-0"]
[Round "02"]
[TimeControl "180+1"]
[Date "2022.05.25"]
[WhiteClock "0:00:43"]
[BlackClock "0:00:20"]

1. d4 {[%clk 0:03:00]}  g6 {[%clk 0:02:58]} 2. c4 {[%clk 0:02:59]}  Bg7 {[%clk 0:02:58]} 3. g3 {[%clk 0:03:00]}  d6 {[%clk 0:02:59]} 4. Bg2 {[%clk 0:03:00]}  Nd7 {[%clk 0:03:00]} 5. Nc3 {[%clk 0:03:00]}  Ngf6 {[%clk 0:03:00]} 6. Nf3 {[%clk 0:03:01]}  O-O {[%clk 0:03:00]} 7. O-O {[%clk 0:03:01]}  c5 {[%clk 0:03:01]} 8. e4 {[%clk 0:02:58]}  cxd4 {[%clk 0:02:58]} 9. Nxd4 {[%clk 0:02:57]}  a6 {[%clk 0:02:59]} 10. h3 {[%clk 0:02:54]}  Ne5 {[%clk 0:02:54]} 11. b3 {[%clk 0:02:50]}  Rb8 {[%clk 0:02:54]} 12. Be3 {[%clk 0:02:47]}  Bd7 {[%clk 0:02:52]} 13. f4 {[%clk 0:02:40]}  Nc6 {[%clk 0:02:52]} 14. Rc1 {[%clk 0:02:36]}  Qa5 {[%clk 0:02:48]} 15. Nxc6 {[%clk 0:02:20]}  Bxc6 {[%clk 0:02:42]} 16. Nd5 {[%clk 0:02:20]}  Nxd5 {[%clk 0:02:31]} 17. exd5 {[%clk 0:02:18]}  Bd7 {[%clk 0:02:29]} 18. Rc2 {[%clk 0:02:16]}  b5 {[%clk 0:02:26]} 19. c5 {[%clk 0:02:14]}  dxc5 {[%clk 0:02:25]} 20. Bxc5 {[%clk 0:02:14]}  Rfe8 {[%clk 0:02:20]} 21. Re2 {[%clk 0:02:01]}  e6 {[%clk 0:02:08]} 22. b4 {[%clk 0:01:54]}  Qd8 {[%clk 0:01:45]} 23. dxe6 {[%clk 0:01:14]}  Bxe6 {[%clk 0:01:45]} 24. Rd2 {[%clk 0:01:13]}  Qc8 {[%clk 0:01:37]} 25. Ba7 {[%clk 0:01:13]}  Rb7 {[%clk 0:00:41]} 26. Bxb7 {[%clk 0:01:11]}  Qxb7 {[%clk 0:00:42]} 27. Bc5 {[%clk 0:01:08]}  Bxh3 {[%clk 0:00:38]} 28. Re1 {[%clk 0:01:08]}  Rxe1+ {[%clk 0:00:25]} 29. Qxe1 {[%clk 0:01:09]}  Bc3 {[%clk 0:00:20]} 30. Rd8+ {[%clk 0:00:47]}  Kg7 {[%clk 0:00:19]} 31. Bf8+ {[%clk 0:00:43]}  Kf6 {[%clk 0:00:20]} 32. Qxc3+ {[%clk 0:00:43]} 1-0


[Site "https://www.chess.com"]

[Event "Titled Tuesday Blitz May 24 Early 2022"]
[White "Zakhartsov, Vladimir"]
[Black "Jeet, Jain"]
[WhiteFideId "4145097"]
[BlackFideId "5073022"]
[WhiteElo "2428"]
[BlackElo "2028"]
[Result "1-0"]
[Round "02"]
[TimeControl "180+1"]
[Date "2022.05.24"]
[WhiteClock "0:00:19"]
[BlackClock "0:00:02"]

1. c4 {[%clk 0:03:00]}  c5 {[%clk 0:02:57]} 2. Nf3 {[%clk 0:03:00]}  Nc6 {[%clk 0:02:56]} 3. g3 {[%clk 0:02:57]}  e5 {[%clk 0:02:56]} 4. Nc3 {[%clk 0:02:56]}  d6 {[%clk 0:02:56]} 5. Bg2 {[%clk 0:02:56]}  g6 {[%clk 0:02:56]} 6. d3 {[%clk 0:02:53]}  Bg7 {[%clk 0:02:56]} 7. Rb1 {[%clk 0:02:53]}  Nge7 {[%clk 0:02:56]} 8. a3 {[%clk 0:02:54]}  a5 {[%clk 0:02:54]} 9. O-O {[%clk 0:02:53]}  O-O {[%clk 0:02:55]} 10. Ne1 {[%clk 0:02:54]}  Qd7 {[%clk 0:02:53]} 11. Nc2 {[%clk 0:02:53]}  b6 {[%clk 0:02:53]} 12. b4 {[%clk 0:02:42]}  axb4 {[%clk 0:02:45]} 13. axb4 {[%clk 0:02:42]}  Bb7 {[%clk 0:02:45]} 14. Nd5 {[%clk 0:02:27]}  Nxd5 {[%clk 0:02:43]} 15. Bxd5 {[%clk 0:02:28]}  Nd8 {[%clk 0:02:41]} 16. Ne3 {[%clk 0:02:24]}  Rb8 {[%clk 0:02:26]} 17. Bxb7 {[%clk 0:02:13]}  Rxb7 {[%clk 0:02:27]} 18. Nd5 {[%clk 0:02:13]}  Nc6 {[%clk 0:02:23]} 19. Be3 {[%clk 0:01:57]}  Ne7 {[%clk 0:02:20]} 20. Nc3 {[%clk 0:01:45]}  Ra8 {[%clk 0:02:11]} 21. Qb3 {[%clk 0:01:44]}  Rba7 {[%clk 0:02:05]} 22. bxc5 {[%clk 0:01:34]}  bxc5 {[%clk 0:02:05]} 23. Qb5 {[%clk 0:01:35]}  h5 {[%clk 0:02:00]} 24. Qxd7 {[%clk 0:01:34]}  Rxd7 {[%clk 0:02:01]} 25. Rb6 {[%clk 0:01:34]}  Bf8 {[%clk 0:01:29]} 26. Ne4 {[%clk 0:01:32]}  Kg7 {[%clk 0:01:17]} 27. Nxd6 {[%clk 0:01:20]}  Ra2 {[%clk 0:01:08]} 28. Re1 {[%clk 0:01:18]}  Nc6 {[%clk 0:00:56]} 29. Nxf7 {[%clk 0:00:59]}  Kxf7 {[%clk 0:00:39]} 30. Rxc6 {[%clk 0:00:59]}  Ra5 {[%clk 0:00:38]} 31. Rb1 {[%clk 0:00:58]}  Ra2 {[%clk 0:00:37]} 32. Kf1 {[%clk 0:00:57]}  Ra5 {[%clk 0:00:34]} 33. Rbb6 {[%clk 0:00:56]}  Ra1+ {[%clk 0:00:29]} 34. Kg2 {[%clk 0:00:56]}  Ra2 {[%clk 0:00:28]} 35. Kf3 {[%clk 0:00:55]}  Be7 {[%clk 0:00:22]} 36. Rxg6 {[%clk 0:00:51]}  e4+ {[%clk 0:00:18]} 37. dxe4 {[%clk 0:00:42]}  Rc2 {[%clk 0:00:18]} 38. e5 {[%clk 0:00:41]}  Ra7 {[%clk 0:00:16]} 39. Rh6 {[%clk 0:00:40]}  Rxc4 {[%clk 0:00:16]} 40. e6+ {[%clk 0:00:35]}  Kg7 {[%clk 0:00:15]} 41. Rxh5 {[%clk 0:00:35]}  Rc3 {[%clk 0:00:15]} 42. Rf5 {[%clk 0:00:32]}  c4 {[%clk 0:00:14]} 43. Rf7+ {[%clk 0:00:29]}  Kg6 {[%clk 0:00:14]} 44. Kg2 {[%clk 0:00:29]}  Rc7 {[%clk 0:00:13]} 45. Bf4 {[%clk 0:00:27]}  Ra7 {[%clk 0:00:11]} 46. Rc6 {[%clk 0:00:26]}  Rc2 {[%clk 0:00:10]} 47. Bd6 {[%clk 0:00:23]}  Bxd6 {[%clk 0:00:06]} 48. Rxa7 {[%clk 0:00:22]}  Bb4 {[%clk 0:00:02]} 49. e7+ {[%clk 0:00:19]}  Kf7 {[%clk 0:00:03]} 50. Rf6+ {[%clk 0:00:19]}  Ke8 {[%clk 0:00:02]} 51. Rf8# {[%clk 0:00:19]} 1-0


[Site "https://www.chess.com"]

[Event "Titled Tuesday Blitz May 24 Early 2022"]
[White "Zhigalko, Sergei"]
[Black "Nguyen, Quoc Hy"]
[WhiteFideId "13502956"]
[BlackFideId "12410853"]
[WhiteElo "2662"]
[BlackElo "1938"]
[Result "1-0"]
[Round "02"]
[TimeControl "180+1"]
[Date "2022.05.24"]
[WhiteClock "0:00:01"]
[BlackClock "0:00:00"]

1. e4 {[%clk 0:03:00]}  c5 {[%clk 0:02:58]} 2. Nf3 {[%clk 0:03:00]}  d6 {[%clk 0:02:57]} 3. d4 {[%clk 0:03:01]}  cxd4 {[%clk 0:02:58]} 4. Qxd4 {[%clk 0:03:02]}  a6 {[%clk 0:02:57]} 5. Bc4 {[%clk 0:03:01]}  Nc6 {[%clk 0:02:54]} 6. Qd3 {[%clk 0:03:01]}  g6 {[%clk 0:02:28]} 7. Nc3 {[%clk 0:03:01]}  Bg7 {[%clk 0:02:27]} 8. Bg5 {[%clk 0:02:58]}  Nf6 {[%clk 0:02:24]} 9. Bb3 {[%clk 0:02:53]}  O-O {[%clk 0:02:22]} 10. O-O-O {[%clk 0:02:50]}  Nd7 {[%clk 0:01:57]} 11. Qe3 {[%clk 0:02:47]}  Nc5 {[%clk 0:01:51]} 12. Kb1 {[%clk 0:02:25]}  Nxb3 {[%clk 0:01:50]} 13. axb3 {[%clk 0:02:15]}  Be6 {[%clk 0:01:31]} 14. Bh6 {[%clk 0:02:11]}  Qa5 {[%clk 0:01:29]} 15. Bxg7 {[%clk 0:02:10]}  Kxg7 {[%clk 0:01:29]} 16. Nd5 {[%clk 0:01:49]}  Bxd5 {[%clk 0:00:59]} 17. Rxd5 {[%clk 0:01:29]}  b5 {[%clk 0:00:56]} 18. c3 {[%clk 0:01:24]}  Rfd8 {[%clk 0:00:20]} 19. Rhd1 {[%clk 0:01:15]}  Rab8 {[%clk 0:00:19]} 20. h4 {[%clk 0:01:14]}  Qb6 {[%clk 0:00:19]} 21. Qd2 {[%clk 0:00:39]}  Na5 {[%clk 0:00:18]} 22. Qc2 {[%clk 0:00:28]}  e6 {[%clk 0:00:18]} 23. R5d4 {[%clk 0:00:27]}  h5 {[%clk 0:00:17]} 24. Ng5 {[%clk 0:00:23]}  Rbc8 {[%clk 0:00:14]} 25. g4 {[%clk 0:00:19]}  hxg4 {[%clk 0:00:13]} 26. h5 {[%clk 0:00:19]}  gxh5 {[%clk 0:00:13]} 27. e5 {[%clk 0:00:20]}  Rh8 {[%clk 0:00:08]} 28. Rxd6 {[%clk 0:00:14]}  Qc5 {[%clk 0:00:07]} 29. Rxe6 {[%clk 0:00:05]}  Nc6 {[%clk 0:00:03]} 30. Rf6 {[%clk 0:00:03]}  Nxe5 {[%clk 0:00:03]} 31. Rxf7+ {[%clk 0:00:03]}  Nxf7 {[%clk 0:00:02]} 32. Ne6+ {[%clk 0:00:04]}  Kf6 {[%clk 0:00:03]} 33. Nxc5 {[%clk 0:00:05]}  Rxc5 {[%clk 0:00:03]} 34. b4 {[%clk 0:00:05]}  Rf5 {[%clk 0:00:03]} 35. Rd7 {[%clk 0:00:05]}  Ne5 {[%clk 0:00:02]} 36. Rd6+ {[%clk 0:00:05]}  Kg5 {[%clk 0:00:02]} 37. Rd5 {[%clk 0:00:05]}  Rhf8 {[%clk 0:00:01]} 38. Qd2+ {[%clk 0:00:05]}  Kg6 {[%clk 0:00:02]} 39. Rd6+ {[%clk 0:00:06]}  R8f6 {[%clk 0:00:02]} 40. Rd8 {[%clk 0:00:06]}  Rf8 {[%clk 0:00:02]} 41. Rxf8 {[%clk 0:00:06]}  Rxf8 {[%clk 0:00:02]} 42. Qd6+ {[%clk 0:00:06]}  Rf6 {[%clk 0:00:02]} 43. Qxe5 {[%clk 0:00:06]}  Rxf2 {[%clk 0:00:03]} 44. Qe4+ {[%clk 0:00:03]}  Rf5 {[%clk 0:00:03]} 45. Kc2 {[%clk 0:00:02]}  g3 {[%clk 0:00:03]} 46. Qe6+ {[%clk 0:00:02]}  Kg5 {[%clk 0:00:03]} 47. Qg8+ {[%clk 0:00:02]}  Kf4 {[%clk 0:00:03]} 48. Kd3 {[%clk 0:00:02]}  Rg5 {[%clk 0:00:02]} 49. Qf7+ {[%clk 0:00:02]}  Rf5 {[%clk 0:00:02]} 50. Qg7 {[%clk 0:00:02]}  h4 {[%clk 0:00:00]} 51. Ke2 {[%clk 0:00:01]} 1-0


[Site "https://www.chess.com"]

[Event "Titled Tuesday Blitz May 24 Early 2022"]
[White "Zorbos"]
[Black "Silvestre, Christian"]
[BlackFideId "30956269"]
[WhiteElo "2500"]
[BlackElo "2266"]
[Result "1-0"]
[Round "02"]
[TimeControl "180+1"]
[Date "2022.05.25"]
[WhiteClock "0:00:44"]
[BlackClock "0:00:04"]

1. e4 {[%clk 0:02:57]}  c6 {[%clk 0:02:58]} 2. d3 {[%clk 0:02:38]}  d5 {[%clk 0:02:58]} 3. Nf3 {[%clk 0:02:30]}  g6 {[%clk 0:02:54]} 4. e5 {[%clk 0:02:21]}  Bg7 {[%clk 0:02:51]} 5. d4 {[%clk 0:02:21]}  f6 {[%clk 0:02:48]} 6. Bd3 {[%clk 0:02:20]}  fxe5 {[%clk 0:02:47]} 7. dxe5 {[%clk 0:02:21]}  Nh6 {[%clk 0:02:39]} 8. O-O {[%clk 0:02:20]}  Nf7 {[%clk 0:02:38]} 9. Re1 {[%clk 0:02:20]}  O-O {[%clk 0:02:36]} 10. c4 {[%clk 0:02:16]}  e6 {[%clk 0:02:33]} 11. Bf4 {[%clk 0:02:09]}  Nd7 {[%clk 0:02:23]} 12. Nc3 {[%clk 0:01:56]}  Nc5 {[%clk 0:02:19]} 13. Bf1 {[%clk 0:01:54]}  Re8 {[%clk 0:02:03]} 14. b4 {[%clk 0:01:50]}  Na6 {[%clk 0:02:01]} 15. a3 {[%clk 0:01:48]}  Nc7 {[%clk 0:01:58]} 16. Nd4 {[%clk 0:01:43]}  dxc4 {[%clk 0:01:53]} 17. Bxc4 {[%clk 0:01:44]}  Nd5 {[%clk 0:01:52]} 18. Bxd5 {[%clk 0:01:36]}  cxd5 {[%clk 0:01:46]} 19. Rc1 {[%clk 0:01:29]}  Bd7 {[%clk 0:01:44]} 20. Ncb5 {[%clk 0:01:29]}  Re7 {[%clk 0:01:27]} 21. Nd6 {[%clk 0:01:20]}  Qb6 {[%clk 0:01:16]} 22. Be3 {[%clk 0:01:13]}  Nxe5 {[%clk 0:00:48]} 23. N4f5 {[%clk 0:01:06]}  gxf5 {[%clk 0:00:34]} 24. Bxb6 {[%clk 0:01:05]}  axb6 {[%clk 0:00:33]} 25. f4 {[%clk 0:00:59]}  Nc6 {[%clk 0:00:29]} 26. Nxf5 {[%clk 0:00:51]}  exf5 {[%clk 0:00:22]} 27. Qxd5+ {[%clk 0:00:48]}  Kf8 {[%clk 0:00:20]} 28. Rxe7 {[%clk 0:00:46]}  Kxe7 {[%clk 0:00:19]} 29. Re1+ {[%clk 0:00:46]}  Ne5 {[%clk 0:00:16]} 30. Rxe5+ {[%clk 0:00:42]}  Bxe5 {[%clk 0:00:15]} 31. fxe5 {[%clk 0:00:43]}  Rxa3 {[%clk 0:00:11]} 32. Qd6+ {[%clk 0:00:44]}  Ke8 {[%clk 0:00:08]} 33. e6 {[%clk 0:00:44]}  Bc6 {[%clk 0:00:08]} 34. e7 {[%clk 0:00:44]}  Ra1+ {[%clk 0:00:05]} 35. Kf2 {[%clk 0:00:44]}  Ra2+ {[%clk 0:00:04]} 36. Ke3 {[%clk 0:00:44]} 1-0


[Site "https://www.chess.com"]